Cogmind - Beta 14 @@@ ROGUE MODE // 2024.10.26 @ 15:05:56 Player: zeyvai Result: Destroyed by S-27 Virus with Autogun Performance ------------- Evolutions (3) 1500 Regions Visited (7) 1400 Robots Destroyed (21) 105 Value Destroyed (824) 824 Prototype IDs (23) 460 Alien Tech Used (0) 0 Bonus (344) 344 TOTAL SCORE: 4633 Bonus ------- Follower Combat Kills 44 Aligned with FarCom 300 Cogmind --------- Core Integrity 0/700 Matter 300/300 Energy 99/100 System Corruption 4% Temperature Cool (0) Movement Core (100) Ox1 Location -7/Storage Parts ------- > --- POWER (1) -------- (None) > --- PROPULSION (4) --- (None) > --- UTILITY (6) ------ Lightpack 2.0 Signal Interpreter > --- WEAPON (2) ------- (None) > --- INVENTORY (40) --- Aluminum Leg Aluminum Leg Compact Wheel Hover Unit Improved Heat Sink Improved Heat Sink Improved Heat Sink Compact Battery (200) Weight Redist. System Improved Sensor Array Recoil Stabilizer Energy Filter Improved Light Armor Plating Pulse Rifle Assault Rifle Light Assault Rifle Grenade Launcher Peak State ------------ > --- POWER ------------ Ion Engine > --- PROPULSION ------- Aluminum Leg Aluminum Leg Carbon-fiber Leg > --- UTILITY ---------- Small Storage Unit Lightpack 2.0 > --- WEAPON ----------- Particle Gun Beamcaster > --- INVENTORY -------- Light Ion Engine Light Ion Engine Light Treads Hover Unit Flight Unit Flight Unit Flight Unit Improved Heat Sink Improved Heat Sink Compact Battery Weight Redist. System Signal Interpreter Hardened Light Armor Plating Small Laser Particle Gun Ion Cannon Light Assault Rifle Light Assault Rifle Grenade Launcher [Rating: 47] Favorites ----------- Power Ion Engine Engine Ion Engine Power Core Micro Nuclear Core Propulsion Aluminum Leg Treads Light Treads Leg Aluminum Leg Flight Unit Flight Unit Utility Small Storage Unit Device Improved Sensor Array Storage Small Storage Unit Processor Signal Interpreter Weapon Particle Gun Energy Gun Particle Gun Energy Cannon Ion Cannon Ballistic Gun Light Assault Rifle Ballistic Cannon Advanced Assault Cannon Build | -11 -10 -10 -10 -9 -8 -7 -7 ------- Run | Yrd Mat Min Exi Min Mat Fac Sto Slots Evolved 6 | . . . . . 4 2 . Power . | . . . . . . . . Propulsion 2 | . . . . . 1 1 . Utility 4 | . . . . . 3 1 . Weapon . | . . . . . . . . Parts Attached 41 | 6 . 5 . . 17 4 9 Power 6 | 1 . 1 . . 3 . 1 Engine 4 | 1 . 1 . . 2 . . Core 2 | . . . . . 1 . 1 Reactor . | . . . . . . . . Propulsion 17 | 2 . 2 . . 7 3 3 Treads 5 | 2 . . . . 1 . 2 Leg 9 | . . 2 . . 6 . 1 Wheel . | . . . . . . . . Hover . | . . . . . . . . Flight 3 | . . . . . . 3 . Utility 5 | 1 . . . . 3 1 . Device 2 | . . . . . 2 . . Storage 2 | 1 . . . . 1 . . Processor 1 | . . . . . . 1 . Hackware . | . . . . . . . . Protection . | . . . . . . . . Artifact . | . . . . . . . . Weapon 13 | 2 . 2 . . 4 . 5 Energy Gun 6 | 1 . 2 . . 1 . 2 Energy Cannon 2 | . . . . . 1 . 1 Ballistic Gun 4 | 1 . . . . 2 . 1 Ballistic Cannon 1 | . . . . . . . 1 Launcher . | . . . . . . . . Special Weapon . | . . . . . . . . Impact Weapon . | . . . . . . . . Slashing Weapon . | . . . . . . . . Piercing Weapon . | . . . . . . . . Special Melee Weapon . | . . . . . . . . Unidentified Prototypes . | . . . . . . . . Parts Lost 28 | . . 3 . . 11 . 14 Power 5 | . . 1 . . 2 . 2 Propulsion 12 | . . 1 . . 5 . 6 Utility 3 | . . . . . 1 . 2 Weapon 8 | . . 1 . . 3 . 4 Highest Loss Streak 11 | . . 3 . . 10 . 11 To Critical Strikes . | . . . . . . . . Average Slot Usage (%) 69 | . 85 81 85 85 68 69 51 Engine 8 | . 14 14 14 14 8 7 2 Treads 2 | . 28 5 . . 1 . . Leg 16 | . . 18 28 28 23 1 . Flight 3 | . . . . . . 22 9 Device 3 | . . . . . . 15 12 Storage 13 | . 14 14 14 14 17 7 7 Processor 1 | . . . . . . 6 7 Energy Gun 10 | . 14 14 14 14 12 . 5 Ballistic Gun 6 | . 14 14 14 14 3 7 1 Peak Build Rating 47 | 6 6 8 10 10 47 45 47 Average Rating 31 | 4 6 7 8 10 44 43 43 On Entrance 15 | . 6 6 8 10 10 43 44 Naked Turns . | . . . . . . . . Heaviest Build 23 | 12 12 14 14 14 23 11 14 Greatest Support 40 | 40 40 20 20 20 35 12 22 Greatest Overweight (x) 5 | . . . . . 5 . 3 Average Overweight (x) . | . . . . . . . . Largest Inventory Capacity 40 | 8 8 8 8 8 40 40 40 Average Capacity 29 | 6 8 8 8 8 40 40 40 Most Carried 25 | 8 8 8 8 8 25 22 23 Average Carried 15 | 4 7 7 7 8 18 21 21 Final Capacity 40 | 8 8 8 8 8 40 40 40 Final Carried 22 | 6 8 8 8 8 18 22 17 Class Distribution -------------------- 57% | Hauler-Mutant 33% | Mutant 7% | Hauler-Scout Dominant Class ---------------- Mutant | -10/Materials Mutant | -10/Mines Mutant | -10/Exiles Mutant | -9/Mines Hauler-Mutant | -8/Materials Hauler-Scout | -7/Factory Hauler-Mutant | -7/Storage Resources | -11 -10 -10 -10 -9 -8 -7 -7 ----------- Run | Yrd Mat Min Exi Min Mat Fac Sto Matter Collected 630 | 138 122 55 . . 219 . 96 Remotely . | . . . . . . . . Salvage Created 759 | . 68 92 . . 483 . 116 Parts 35 | . 5 3 . . 23 . 4 Haulers Intercepted . | . . . . . . . . Recyclers Shooed 1 | . 1 . . . . . . Parts Field Recycled . | . . . . . . . . Retrieved Matter . | . . . . . . . . Parts Self-Destructed . | . . . . . . . . Prevented . | . . . . . . . . Kills | -11 -10 -10 -10 -9 -8 -7 -7 ------- Run | Yrd Mat Min Exi Min Mat Fac Sto Combat Hostiles Destroyed 18 | . 1 2 . . 13 . 2 Guns 17 | . 1 2 . . 12 . 2 AOE 1 | . . . . . 1 . . Classes Destroyed 7 | . 2 . . . 4 . 1 Tunneler 1 | . . . . . 1 . . Operator 1 | . . . . . 1 . . Watcher 1 | . 1 . . . . . . Swarmer 2 | . . . . . 2 . . Grunt 14 | . 1 2 . . 10 . 1 Sentry 1 | . . . . . 1 . . Hunter 1 | . . . . . . . 1 Best Kill Streak 4 | . 1 2 . . 4 . 1 Combat Bots Only 2 | . 1 2 . . 2 . 1 Max Kills in Single Turn 3 | . 1 1 . . 3 . 1 Gunslinging . | . . . . . . . . Exploded 1 | . . . . . 1 . . Melee . | . . . . . . . . Uniques/NPCs Destroyed . | . . . . . . . . Combat | -11 -10 -10 -10 -9 -8 -7 -7 -------- Run | Yrd Mat Min Exi Min Mat Fac Sto Hostile Shots Fired 377 | . 48 21 . . 116 . 192 Missed 123 | . 12 3 . . 33 . 75 Damage Taken 3944 | . 393 244 . . 1540 . 1767 Core 1280 | . 64 52 . . 453 . 711 Absorbed by Shields . | . . . . . . . . Core Remaining (%) 56 | 100 . . . 53 17 . . Volleys Fired 100 | . 11 9 . . 62 . 18 Largest 2 | . 2 2 . . 2 . 2 Hottest 140 | . 60 60 . . 140 . 88 Shots Fired 169 | . 22 17 . . 105 . 25 Gun 151 | . 22 17 . . 92 . 20 Cannon 18 | . . . . . 13 . 5 Launcher . | . . . . . . . . Special . | . . . . . . . . Kinetic 84 | . 11 9 . . 54 . 10 Thermal 85 | . 11 8 . . 51 . 15 Explosive . | . . . . . . . . Electromagnetic . | . . . . . . . . Robot Hit Streak 9 | . 3 8 . . 9 . 6 Robot Miss Streak 5 | . 4 2 . . 5 . 3 Penetration Max . | . . . . . . . . Secondary Targets 4 | . 1 1 . . 2 . . Max Gunslinging Chain 1 | . 1 1 . . 1 . . Shots Hit Robots 105 | . 10 12 . . 67 . 16 Core Hits 59 | . 5 5 . . 37 . 12 Critical Kills . | . . . . . . . . Critical Parts Destroyed . | . . . . . . . . Critical Strikes 2 | . . . . . 2 . . Burn 2 | . . . . . 2 . . Melee Attacks . | . . . . . . . . Impact . | . . . . . . . . Slashing . | . . . . . . . . Piercing . | . . . . . . . . Sneak Attacks . | . . . . . . . . Combat Hostiles . | . . . . . . . . Follow-up Attacks . | . . . . . . . . Damage Inflicted 1882 | . 125 110 . . 1426 . 221 Guns 1324 | . 125 110 . . 937 . 152 Cannons 209 | . . . . . 160 . 49 Explosions 329 | . . . . . 329 . . Melee . | . . . . . . . . Ramming 20 | . . . . . . . 20 Kinetic 725 | . 50 55 . . 564 . 56 Thermal 808 | . 75 55 . . 533 . 145 Explosive 329 | . . . . . 329 . . Electromagnetic . | . . . . . . . . Impact . | . . . . . . . . Slashing . | . . . . . . . . Piercing . | . . . . . . . . Highest Corruption 4 | . . . . . . . 4 Average Corruption 2 | . . . . . . . 2 Corruption Purged . | . . . . . . . . Corruption Blocked . | . . . . . . . . Effects 2 | . . . . . . . 2 Message Errors 1 | . . . . . . . 1 Matter Fused 1 | . . . . . . . 1 Overload Shots . | . . . . . . . . Overflow Damage 43 | . . . . . 43 . . Projectiles 19 | . . . . . 19 . . Explosions 24 | . . . . . 24 . . Melee . | . . . . . . . . Knockbacks . | . . . . . . . . Impact . | . . . . . . . . Kinetic . | . . . . . . . . Secondary . | . . . . . . . . Self-Inflicted Damage 205 | . . . . . 197 . 8 Shots 2 | . . . . . 2 . . Rammed 11 | . . . . . . . 11 Targets Rammed 11 | . . . . . . . 11 Kicked . | . . . . . . . . Crushed . | . . . . . . . . Highest Temperature 231 | . 138 103 . . 231 . 35 Average Temperature 64 | . 60 58 . . 73 . 7 Received Heat Transfer 1425 | . 216 138 . . 801 . 270 Effects 1 | . . . . . 1 . . Interference 1 | . . . . . 1 . . Siege Activations . | . . . . . . . . Robots Corrupted . | . . . . . . . . Combat Hostiles . | . . . . . . . . Parts Fried . | . . . . . . . . Impact Corruptions . | . . . . . . . . Robots Melted . | . . . . . . . . Combat Hostiles . | . . . . . . . . Parts Melted 2 | . . . . . 1 . 1 Heat Transferred 1851 | . 175 125 . . 1258 . 293 Parts Sabotaged . | . . . . . . . . Parts Stolen . | . . . . . . . . Parts Stripped . | . . . . . . . . Power Chain Reactions . | . . . . . . . . Alert | -11 -10 -10 -10 -9 -8 -7 -7 ------- Run | Yrd Mat Min Exi Min Mat Fac Sto Peak Influence 262 | . 31 50 . . 262 119 196 Initial 119 | . . 12 . . . 119 53 Average 66 | . 6 41 . . 67 119 112 Maximum Alert Level 1 | . . . . . 1 . . Low Security (%) 94 | 100 100 100 . 100 88 100 100 Level 1 5 | . . . . . 11 . . Level 2 . | . . . . . . . . Level 3 . | . . . . . . . . Level 4 . | . . . . . . . . Level 5 . | . . . . . . . . High Security . | . . . . . . . . Max Security . | . . . . . . . . Squads Dispatched 6 | . . . . . 2 . 4 Investigation 1 | . . . . . 1 . . Extermination 1 | . . . . . . . 1 Reinforcement 2 | . . . . . 1 . 1 Assault 2 | . . . . . . . 2 Garrison . | . . . . . . . . Intercept . | . . . . . . . . Searches Triggered . | . . . . . . . . Construction Impeded . | . . . . . . . . Haulers Reinforced . | . . . . . . . . Active Scanning Responses . | . . . . . . . . Cargo Convoy Interrupts . | . . . . . . . . Stealth | -11 -10 -10 -10 -9 -8 -7 -7 --------- Run | Yrd Mat Min Exi Min Mat Fac Sto Distress Signals 9 | . 1 . . . 5 . 3 Communications Jammed . | . . . . . . . . Distress Signals . | . . . . . . . . Times Spotted 63 | . 5 2 . . 24 . 32 Peak Tracking Total 10 | . 4 2 . . 5 . 10 Tactical Retreats 10 | . . . . . 3 . 7 Traps | -11 -10 -10 -10 -9 -8 -7 -7 ------- Run | Yrd Mat Min Exi Min Mat Fac Sto Traps Triggered 1 | . . . . . 1 . . Indirectly . | . . . . . . . . Trap Hack Attempts . | . . . . . . . . Triggered . | . . . . . . . . Disarmed . | . . . . . . . . Reprogrammed . | . . . . . . . . Reused . | . . . . . . . . Traps Extracted . | . . . . . . . . Installed . | . . . . . . . . Triggered . | . . . . . . . . Machines | -11 -10 -10 -10 -9 -8 -7 -7 ---------- Run | Yrd Mat Min Exi Min Mat Fac Sto Machines Disabled 3 | . . . . . 3 . . Max in Single Turn 2 | . . . . . 2 . . Machines Repaired . | . . . . . . . . Machines Dismantled . | . . . . . . . . Machines Sabotaged . | . . . . . . . . Overloaded Fab Kills . | . . . . . . . . Hacking | -11 -10 -10 -10 -9 -8 -7 -7 --------- Run | Yrd Mat Min Exi Min Mat Fac Sto Machines Accessed 6 | . 1 . 2 . 2 . 1 Terminals 4 | . 1 . . . 2 . 1 Fabricators . | . . . . . . . . Repair Stations . | . . . . . . . . Recycling Units . | . . . . . . . . Scanalyzers . | . . . . . . . . Garrison Access . | . . . . . . . . Total Hacks 40 | . 4 . 24 . 11 . 1 Successful 37 | . 2 . 24 . 10 . 1 Failed 3 | . 2 . . . 1 . . Catastrophic 2 | . 1 . . . 1 . . Database Lockouts . | . . . . . . . . Manual 1 | . . . 1 . . . . Terminals 16 | . 4 . . . 11 . 1 Fabricators . | . . . . . . . . Repair Stations . | . . . . . . . . Recycling Units . | . . . . . . . . Scanalyzers . | . . . . . . . . Garrison Access . | . . . . . . . . Terminal Hacks 37 | . 2 . 24 . 10 . 1 Record 27 | . . . 23 . 4 . . Open Door 1 | . . . . . . . 1 Emergency Access Points 1 | . . . . . 1 . . Alert Level 1 | . . . . . 1 . . Dispatch Records 2 | . 1 . . . 1 . . Surveillance Status 1 | . . . . . 1 . . Transport Status 1 | . . . . . 1 . . Reinforcement Status 1 | . 1 . . . . . . Zone Layout 1 | . . . . . 1 . . Derelict Proto ID Bank 1 | . . . 1 . . . . Fabricator Hacks . | . . . . . . . . Repair Station Hacks . | . . . . . . . . Recycling Unit Hacks . | . . . . . . . . Scanalyzer . | . . . . . . . . Garrison Access Hacks . | . . . . . . . . Unauthorized Hacks . | . . . . . . . . Terminals . | . . . . . . . . Fabricators . | . . . . . . . . Repair Stations . | . . . . . . . . Recycling Units . | . . . . . . . . Scanalyzers . | . . . . . . . . Garrison Access . | . . . . . . . . Data Cores Recovered 1 | . . . . . 1 . . Used . | . . . . . . . . Hacking Detections 2 | . 1 . . . 1 . . Full Trace Events 1 | . 1 . . . . . . Feedback Events . | . . . . . . . . Feedback Blocked . | . . . . . . . . Robot Schematics Acquired . | . . . . . . . . Robots Built . | . . . . . . . . Authchips . | . . . . . . . . Time . | . . . . . . . . Total Robot Build Rating . | . . . . . . . . Part Schematics Acquired . | . . . . . . . . Parts Built . | . . . . . . . . Authchips . | . . . . . . . . Time . | . . . . . . . . Total Part Build Rating . | . . . . . . . . Parts Repaired . | . . . . . . . . Time . | . . . . . . . . Parts Recycled . | . . . . . . . . Recycled Matter . | . . . . . . . . Retrieved Matter . | . . . . . . . . Retrieved Components . | . . . . . . . . Parts Scanalyzed . | . . . . . . . . Part Schematics Acquired . | . . . . . . . . Parts Damaged . | . . . . . . . . Bothacking | -11 -10 -10 -10 -9 -8 -7 -7 ------------ Run | Yrd Mat Min Exi Min Mat Fac Sto Used RIF Installer . | . . . . . . . . Robots Hacked . | . . . . . . . . Non-combat . | . . . . . . . . Combat . | . . . . . . . . Robot Hacks Applied . | . . . . . . . . Relay Couplers Released . | . . . . . . . . Fabnet Peak Effective % . | . . . . . . . . Robots Rewired . | . . . . . . . . Allies Hacked . | . . . . . . . . Hacks Repelled . | . . . . . . . . Allies | -11 -10 -10 -10 -9 -8 -7 -7 -------- Run | Yrd Mat Min Exi Min Mat Fac Sto Total Allies 4 | . . . . 2 . . 2 Largest Group 2 | . . . . 2 2 . 2 Highest-Rated Group 62 | . . . . 39 39 . 62 Highest-Rated Ally 31 | . . . . 31 31 . 31 Total Orders . | . . . . . . . . Ally Attacks 20 | . . . . . 5 . 15 Total Damage 296 | . . . . . 65 . 231 Kills 4 | . . . . . 2 . 2 Allies Corrupted 1 | . . . . . . . 1 Allies Melted . | . . . . . . . . Intel | -11 -10 -10 -10 -9 -8 -7 -7 ------- Run | Yrd Mat Min Exi Min Mat Fac Sto Robot Analysis Total . | . . . . . . . . Derelict Logs Recovered . | . . . . . . . . Drone Launches . | . . . . . . . . Drone Recoveries . | . . . . . . . . Exploration | -11 -10 -10 -10 -9 -8 -7 -7 ------------- Run | Yrd Mat Min Exi Min Mat Fac Sto Turns Passed 2716 | 72 131 121 265 313 1065 115 634 Spaces Moved 1254 | 39 62 70 219 256 291 90 227 Core 71 | 6 . . . . 2 . 63 Treads 102 | 33 62 5 . . . . 2 Legs 833 | . . 65 219 256 289 . 4 Wheels . | . . . . . . . . Hover . | . . . . . . . . Flight 248 | . . . . . . 90 158 Fastest Speed 34 | 50 160 120 120 120 120 34 34 Average Speed 113 | 143 160 122 120 120 123 34 95 Slowest Speed 300 | 160 160 160 120 120 300 34 280 Overloaded Moves . | . . . . . . . . Propulsion Burnouts . | . . . . . . . . Robots Hopped . | . . . . . . . . Cave-ins Triggered . | . . . . . . . . Exploration Rate (%) 27 | 4 14 13 60 56 31 2 38 Regions Visited 7 Branch Regions 4 Pre-discovered Areas 1 | . . . 1 . . . . Known Exits Taken 1 | . . . . . . 1 . Unknown Exits Taken 6 | 1 1 1 1 1 1 . . Scrap Searched 1 | . . 1 . . . . . Spaces Dug . | . . . . . . . . Terrain Destroyed 49 | . . . . . 46 . 3 Melee . | . . . . . . . . Projectile 5 | . . . . . 2 . 3 AOE 44 | . . . . . 44 . . Terrain Rammed . | . . . . . . . . Walls Destroyed . | . . . . . . . . Machines Disabled . | . . . . . . . . Actions | -11 -10 -10 -10 -9 -8 -7 -7 --------- Run | Yrd Mat Min Exi Min Mat Fac Sto Total 2389 | 54 74 88 222 262 895 174 620 Wait 930 | . . 3 . 7 498 72 350 Move 1247 | 38 61 69 218 255 290 89 227 Hop . | . . . . . . . . Pick Up 53 | 10 2 2 1 . 28 7 3 Fast Attach 3 | 2 . 1 . . . . . Attach 31 | 4 . 2 . . 14 3 8 Detach 3 | . . . . . . 2 1 Swap 7 | . . 2 . . 3 1 1 Drop 3 | . . . 3 . . . . Fire 100 | . 11 9 . . 62 . 18 Melee . | . . . . . . . . Ram 11 | . . . . . . . 11 Kick . | . . . . . . . . Crush . | . . . . . . . . Escape Stasis . | . . . . . . . . Rewire 1 | . . . . . . . 1 Trap . | . . . . . . . . Miscellaneous . | . . . . . . . . Route ------- -11/Scrapyard -10/Materials -10/Mines -10/Exiles -9/Mines -8/Materials -7/Factory -7/Storage History --------- Turn | Location | Event 3 | -11/Scrapyard | Discovered new exit (range 15) 73 | -11/Scrapyard | Entered Materials 148 | -10/Materials | Discovered new exit (range 15) 204 | -10/Materials | Entered Mines 225 | -10/Mines | Met a Derelict bent on vengeance 249 | -10/Mines | Lost 3 parts (1p1n1w) 303 | -10/Mines | Build established: Mutant 320 | -10/Mines | Deemed a non-threat by the Exiles lab entrance 320 | -10/Mines | Discovered new exit (range 5) 325 | -10/Mines | Entered Exiles 354 | -10/Exiles | Met 8R-AWN 375 | -10/Exiles | Met EX-HEX 408 | -10/Exiles | Met EX-BIN 423 | -10/Exiles | Aligned with FarCom system 424 | -10/Exiles | Given EX-Vault access code 455 | -10/Exiles | Opened EX-Vault 463 | -10/Exiles | Found Lightpack 2.0 490 | -10/Exiles | Warned to stay clear of 0b10 Research branches 532 | -10/Exiles | Met EX-DEC 540 | -10/Exiles | Learned location of Zion (-6) 575 | -10/Exiles | Discovered new exit (range 14) 590 | -10/Exiles | Left Exiles lab with Lightpack 2.0 590 | -10/Exiles | Entered Mines 629 | -9/Mines | A weapon hastily lodged in a ceiling crevice suddenly fell to the ground 882 | -9/Mines | Discovered new exit (range 13) 903 | -9/Mines | Entered Materials 903 | -8/Materials | Accompanied by 2 allies 903 | -8/Materials | Evolved 4 slots: Propulsion x1, Utility x3 908 | -8/Materials | Led the pair of lost Derelicts to an unsafe place 1201 | -8/Materials | Build established: Hauler-Mutant 1845 | -8/Materials | Core integrity fell below 50% 1917 | -8/Materials | Core integrity fell below 20% 1928 | -8/Materials | Discovered new exit (range 14) 1943 | -8/Materials | Lost 10 parts (2p5n1u2w) 1968 | -8/Materials | Entered Factory 1968 | -7/Factory | Evolved 2 slots: Propulsion x1, Utility x1 2081 | -7/Factory | Discovered new exit (range 7) 2083 | -7/Factory | Identified exit to Storage 2083 | -7/Factory | Entered Storage 2087 | -7/Storage | Met a pair of Derelict thieves 2654 | -7/Storage | Core integrity fell below 50% 2673 | -7/Storage | Lost 11 parts (1p4n2u4w) 2702 | -7/Storage | Core integrity fell below 20% 2717 | -7/Storage | Destroyed by S-27 Virus with Autogun Last Messages --------------- U-05 Engineer builds a Wall. Aluminum Leg destroyed. System corrupted: Matter fused (-8). W-25 Informer sends out distress signal. Slammed into G-47 Trooper. Slammed into W-25 Informer. Signal Interpreter broken. Destabilizing: Short circuit. P-60 Hacker resets M-28 Smith, system corruption cleaned. Slammed into W-25 Informer. Destabilizing: System corrupted (+2). Slammed into W-25 Informer. W-25 Informer sends out distress signal. Acquired 12 matter. Slammed into B-48 Gladiator. Attempting to rewire U-05 Engineer. U-05 Engineer is broken beyond repair. Slammed into S-27 Virus. CL6G#1YKADKRS